bitfinex/quotes_SOLUSD_20240620
["timestamp","ask_amount","ask_price","bid_price","bid_amount"]
[1718878144808,15.1307,137.41,137.34,7.281]
[1718878144809,7.2782,137.4,137.36,7.13]
[1718878145232,15.1307,137.41,137.37,7.13]
[1718878145428,18.1898,137.44,137.38,7.13]
[1718878145429,7.2768,137.43,137.38,7.13]
[1718878145654,7.2768,137.43,137.39,7.13]
[1718878146750,7.277,137.42,137.39,7.13]
[1718878147038,7.277,137.42,137.38,0.17]
[1718878147335,7.277,137.42,137.38,7.3]
[1718878147538,7.277,137.42,137.38,0.17]
[1718878148233,7.2776,137.41,137.36,0.17]
[1718878149427,7.2776,137.41,137.36,7.2799]
[1718878149618,7.2771,137.42,137.36,7.2799]
[1718878149941,7.2766,137.43,137.38,7.279]
[1718878150138,7.2769,137.42,137.35,0.34]
[1718878150325,7.2776,137.41,137.36,7.2799]
[1718878151433,7.2771,137.42,137.36,7.2799]
[1718878151651,7.2771,137.42,137.35,0.17]
[1718878151652,7.2771,137.42,137.37,7.2793]
[1718878151830,33.3193,137.45,137.38,7.2789]
[1718878151831,7.2765,137.43,137.38,7.2789]
[1718878152636,7.2773,137.42,137.36,7.2798]
[1718878154038,18.3613,137.43,137.33,21.4]
[1718878154227,7.2783,137.4,137.35,7.2806]
[1718878154615,7.2781,137.4,137.34,7.2807]
[1718878154913,63.1936,137.42,137.33,7.2816]
[1718878155114,7.2794,137.38,137.33,7.2816]
[1718878155718,7.2787,137.39,137.34,7.2811]
[1718878156423,7.2796,137.37,137.32,7.2821]
[1718878156737,18.7048,137.41,137.3,15.8118]
[1718878156939,45.0,137.4,137.32,7.2819]
[1718878157145,7.2787,137.39,137.3,15.8118]
[1718878157437,7.2787,137.39,137.34,7.2809]
[1718878157622,7.2787,137.39,137.33,7.2814]
[1718878157825,7.2787,137.39,137.34,7.281]
[1718878158426,18.5348,137.41,137.33,7.2815]
[1718878158626,7.2791,137.38,137.33,7.2815]
[1718878158926,7.2787,137.39,137.33,7.2815]
[1718878159537,45.0,137.4,137.32,7.2821]
[1718878159727,18.5348,137.41,137.31,0.17]
[1718878159933,18.5348,137.41,137.34,7.2809]
[1718878159934,7.2788,137.39,137.34,7.2809]
[1718878160131,7.2782,137.4,137.34,7.2809]
[1718878160541,7.2785,137.39,137.34,7.2809]
[1718878160844,18.5339,137.41,137.33,7.4515]
[1718878161027,7.2794,137.38,137.33,7.2815]
[1718878161224,7.2792,137.38,137.33,7.2816]
[1718878161927,7.2792,137.38,137.32,7.282]
[1718878162129,7.2792,137.38,137.33,7.2815]
[1718878162950,7.2796,137.37,137.32,7.282]
[1718878163521,7.2802,137.36,137.31,7.4526]
[1718878163945,7.2807,137.35,137.3,23.0949]
[1718878164244,7.2807,137.35,137.3,7.2832]
[1718878166345,7.2802,137.36,137.31,7.2826]
[1718878166533,7.2797,137.37,137.32,7.2821]
[1718878167651,14.4197,137.37,137.32,7.2821]
[1718878167847,7.14,137.37,137.32,7.2821]
[1718878168039,0.34,137.38,137.32,7.2821]
[1718878168234,7.14,137.37,137.32,7.2821]
[1718878168438,7.14,137.36,137.31,7.14]
[1718878169247,7.14,137.36,137.31,7.2826]
[1718878169630,7.2812,137.34,137.3,7.2833]
[1718878169833,7.14,137.35,137.29,14.4236]
[1718878170031,14.4212,137.34,137.29,7.2836]
[1718878170241,7.14,137.34,137.27,15.6963]
[1718878170439,14.424,137.29,137.24,7.2861]
[1718878170639,7.14,137.29,137.25,7.2858]
[1718878171250,7.14,137.29,137.23,21.5696]
[1718878171428,7.2846,137.28,137.23,13.4427]
[1718878171628,7.14,137.28,137.24,7.2865]
[1718878172246,7.14,137.29,137.24,14.4265]
[1718878172949,14.4239,137.29,137.24,14.4265]
[1718878173441,7.2839,137.29,137.24,7.2865]
[1718878174660,7.2845,137.28,137.23,13.4428]
[1718878177061,7.284,137.29,137.24,7.2864]
[1718878177562,7.2846,137.28,137.23,13.4429]
[1718878178840,18.2108,137.29,137.2,15.4136]
[1718878179042,45.34,137.28,137.2,15.4136]
[1718878179252,7.2857,137.26,137.21,7.288]
[1718878179456,7.2851,137.27,137.22,7.2874]
[1718878179759,0.17,137.3,137.2,15.4136]
[1718878179937,45.51,137.3,137.2,15.4136]
[1718878180141,7.2849,137.27,137.22,7.2873]
[1718878180566,45.51,137.3,137.2,15.4136]
[1718878180567,7.2855,137.26,137.21,7.2879]
[1718878180940,7.2861,137.25,137.2,22.7021]
[1718878183740,18.212,137.28,137.18,6.4924]
[1718878183939,45.34,137.27,137.18,6.4924]
[1718878184151,7.2862,137.25,137.2,7.2883]
[1718878184665,6.2509,137.29,137.18,6.4924]
[1718878184955,15.3113,137.31,137.19,0.34]
[1718878185156,15.3113,137.31,137.21,0.17]
[1718878185347,15.3113,137.31,137.2,0.51]
[1718878185551,15.3113,137.31,137.22,7.2872]
[1718878186254,15.3113,137.31,137.23,7.2869]
[1718878186761,45.34,137.3,137.22,7.2873]
[1718878188353,45.34,137.3,137.21,7.2878]
[1718878188554,0.17,137.29,137.21,7.2878]
[1718878188950,0.17,137.29,137.22,7.2875]
[1718878189343,0.17,137.29,137.24,7.2863]
[1718878189544,0.17,137.29,137.23,7.2868]
[1718878189956,0.17,137.29,137.21,7.2878]
[1718878193371,7.15,137.27,137.21,14.4378]
[1718878193567,7.15,137.27,137.22,7.2875]
[1718878193942,7.15,137.27,137.21,7.15]
[1718878194146,7.15,137.28,137.25,7.2859]
[1718878194366,7.15,137.3,137.25,7.2859]
[1718878195078,7.15,137.3,137.24,14.4362]
[1718878196763,7.15,137.3,137.24,7.2862]
[1718878198171,7.15,137.29,137.24,7.2862]
[1718878199161,7.15,137.29,137.23,0.17]
[1718878199474,7.15,137.29,137.22,0.17]
[1718878199677,7.15,137.29,137.22,0.34]
[1718878200163,15.3113,137.31,137.22,0.34]
[1718878200355,7.15,137.29,137.22,0.34]
[1718878203158,7.15,137.28,137.18,6.4924]
[1718878203355,7.15,137.26,137.21,7.15]
[1718878203572,7.15,137.27,137.22,7.15]
[1718878203874,7.15,137.28,137.23,7.15]
[1718878204257,7.15,137.29,137.23,7.15]
[1718878204664,15.3113,137.31,137.24,7.15]
[1718878204868,7.15,137.29,137.24,7.15]
[1718878205076,7.15,137.28,137.23,7.15]
[1718878206472,7.15,137.27,137.22,7.15]
[1718878207180,7.15,137.27,137.21,0.17]
[1718878207357,7.15,137.27,137.18,6.4924]
[1718878207560,0.17,137.3,137.2,7.15]
[1718878207761,7.15,137.25,137.2,7.15]
[1718878207972,7.15,137.25,137.18,6.4924]
[1718878208176,7.15,137.25,137.2,7.15]
[1718878208574,7.15,137.26,137.2,7.15]
[1718878208770,7.15,137.26,137.21,7.15]
[1718878210281,7.15,137.26,137.19,0.17]
[1718878210466,7.15,137.26,137.18,6.4924]
[1718878210467,7.15,137.24,137.18,6.4924]
[1718878210671,7.15,137.24,137.19,7.15]
[1718878210871,7.15,137.24,137.18,6.4924]
[1718878211074,7.15,137.24,137.19,7.15]
[1718878211876,7.15,137.25,137.2,7.15]
[1718878212278,15.1887,137.29,137.21,7.15]
[1718878212472,7.15,137.26,137.21,7.15]
[1718878212676,7.15,137.27,137.21,7.15]
[1718878215277,14.4357,137.26,137.2,7.15]
[1718878215574,7.286,137.25,137.2,7.15]
[1718878216173,14.436,137.25,137.2,7.15]
[1718878216499,7.15,137.25,137.2,7.15]
[1718878217396,14.4356,137.26,137.2,7.15]
[1718878217571,14.4356,137.26,137.21,7.15]
[1718878218065,7.15,137.26,137.21,7.15]
[1718878218470,14.4354,137.26,137.21,7.15]
[1718878218671,7.15,137.26,137.21,7.15]
[1718878218882,14.4355,137.26,137.21,7.15]
[1718878219292,7.2845,137.28,137.22,7.32]
[1718878219800,14.4345,137.28,137.22,7.32]
[1718878220297,15.1887,137.29,137.22,7.32]
[1718878220607,7.2836,137.3,137.22,0.17]
[1718878220787,7.284,137.29,137.25,7.15]
[1718878221098,7.2849,137.27,137.23,7.15]
[1718878221599,7.2844,137.28,137.23,7.15]
[1718878222791,7.2849,137.27,137.22,15.0228]
[1718878222991,7.15,137.29,137.22,15.0228]
[1718878223211,7.15,137.29,137.23,7.15]
[1718878223494,7.2846,137.28,137.23,7.15]
[1718878223890,7.2839,137.29,137.23,7.15]
[1718878224087,14.4339,137.29,137.23,7.15]
[1718878224403,7.2834,137.3,137.24,7.15]
[1718878224603,14.4334,137.3,137.25,7.15]
[1718878225599,7.2834,137.3,137.25,7.15]
[1718878225782,14.4334,137.3,137.25,7.15]
[1718878226401,14.4324,137.32,137.27,7.15]
[1718878226611,7.15,137.33,137.24,6.5862]
[1718878226784,7.2837,137.3,137.24,6.4162]
[1718878226988,7.15,137.31,137.24,6.4162]
[1718878226989,7.2839,137.29,137.25,7.15]
[1718878227186,7.15,137.31,137.25,7.15]
[1718878227494,14.4332,137.31,137.26,7.15]
[1718878227690,7.2832,137.31,137.26,7.15]
[1718878228101,7.2832,137.31,137.25,0.17]
[1718878228304,14.4332,137.31,137.26,7.15]
[1718878228608,7.2833,137.3,137.26,7.15]
[1718878229393,14.4329,137.31,137.26,7.15]
[1718878229601,7.2834,137.3,137.26,7.15]
[1718878230306,34.67826033,137.35,137.26,7.15]
[1718878230492,7.2821,137.33,137.26,7.15]
[1718878230888,7.15,137.32,137.26,7.15]
[1718878231216,7.15,137.32,137.27,7.15]
[1718878231510,7.2821,137.33,137.27,7.15]
[1718878231706,7.2812,137.34,137.28,7.32]
[1718878231913,14.4312,137.34,137.29,7.15]
[1718878232488,15.6889,137.35,137.29,7.15]
[1718878232696,22.493,137.39,137.31,7.15]
[1718878232999,23.5271,137.39,137.32,7.15]
[1718878233189,23.3984,137.39,137.33,7.15]
[1718878233389,30.6769,137.39,137.33,7.15]
[1718878233804,5.84616789,137.4,137.33,7.15]
[1718878233805,15.6049,137.42,137.34,7.15]
[1718878234112,7.2778,137.41,137.35,7.15]
[1718878234288,7.15,137.41,137.35,7.15]
[1718878234719,14.428,137.4,137.35,7.15]
[1718878235212,7.15,137.39,137.34,7.15]
[1718878236215,7.15,137.4,137.35,7.15]
[1718878236418,14.428,137.4,137.35,7.15]
[1718878237012,7.15,137.4,137.35,7.15]
[1718878237220,7.2776,137.41,137.35,7.15]
[1718878237400,7.15,137.39,137.33,15.6199]
[1718878237710,7.15,137.39,137.33,22.7699]
[1718878239220,7.2781,137.4,137.33,22.7699]
[1718878239820,14.4286,137.39,137.33,22.7699]
[1718878240197,7.2791,137.38,137.33,15.6199]
[1718878240414,14.4291,137.38,137.33,15.6199]
[1718878241192,7.4486,137.39,137.33,15.6199]
[1718878241397,0.17,137.39,137.33,15.6199]
[1718878241604,7.4482,137.4,137.33,22.7699]
[1718878241819,7.4482,137.4,137.34,7.15]
[1718878242018,22.8821,137.42,137.35,7.15]
[1718878242342,20.5635,137.46,137.37,7.15]
[1718878242505,6.1385,137.46,137.38,7.15]
[1718878242703,7.15,137.43,137.38,7.15]
[1718878242921,14.4267,137.43,137.38,7.15]
[1718878243224,14.4267,137.43,137.37,7.15]
[1718878243915,14.4269,137.42,137.37,7.15]
[1718878244718,7.2769,137.42,137.36,7.15]
[1718878244906,14.4269,137.42,137.36,7.15]
[1718878245407,7.2769,137.42,137.35,0.17]
[1718878245809,7.2769,137.42,137.34,6.0688]
[1718878246320,45.17,137.41,137.34,6.0688]
[1718878247619,45.0,137.41,137.34,6.0688]
[1718878252231,7.4471,137.42,137.34,6.57159073]
[1718878253334,7.4466,137.43,137.35,0.17]
[1718878253535,7.277,137.42,137.35,0.17]
[1718878257027,7.2775,137.41,137.35,0.17]
[1718878258434,0.17,137.43,137.35,0.17]
[1718878258611,7.4467,137.43,137.35,0.17]
[1718878259319,7.2771,137.42,137.35,0.17]
[1718878259715,7.2775,137.41,137.35,0.17]
[1718878259917,7.2775,137.41,137.34,6.0688]
[1718878260136,7.277,137.42,137.34,6.0688]
[1718878260333,7.277,137.42,137.35,0.17]
[1718878260520,7.4467,137.43,137.35,0.17]
[1718878260929,45.0,137.42,137.35,0.17]
[1718878261239,52.2771,137.42,137.35,0.17]
[1718878261617,7.2775,137.41,137.35,0.17]
[1718878261816,7.2774,137.42,137.35,0.17]
[1718878262423,0.17,137.41,137.3,6.3352]
[1718878262625,7.2798,137.37,137.3,6.3352]
[1718878262823,7.2792,137.38,137.3,6.3352]
[1718878263021,7.2793,137.38,137.3,6.3352]
[1718878263720,23.749,137.39,137.3,6.3352]
[1718878263926,6.1255,137.41,137.3,6.3352]
[1718878264126,7.2783,137.4,137.3,6.3352]
[1718878264320,7.2783,137.4,137.3,27.7452]
[1718878264738,7.2783,137.4,137.31,0.34]
[1718878265132,7.2775,137.41,137.31,0.34]
[1718878265331,7.4471,137.42,137.33,0.17]
[1718878265652,7.2776,137.41,137.33,0.68]
[1718878266547,7.2781,137.4,137.33,0.34]
[1718878266723,7.2788,137.39,137.32,16.4366]
[1718878266922,0.17,137.41,137.32,16.4366]
[1718878267142,7.2782,137.4,137.32,16.4366]
[1718878267539,7.14,137.4,137.35,7.14]
[1718878268059,14.418,137.4,137.35,7.14]
[1718878270445,0.34,137.41,137.34,7.14]
[1718878270446,59.7586,137.39,137.34,7.14]
[1718878270752,59.4186,137.39,137.34,7.14]
[1718878271136,52.14,137.39,137.34,7.14]
[1718878271348,7.2781,137.4,137.35,7.14]
[1718878271542,14.4181,137.4,137.35,7.14]
[1718878272932,7.2785,137.39,137.34,7.14]
[1718878274127,52.48,137.38,137.32,16.4366]
[1718878274334,7.14,137.37,137.32,16.4366]
[1718878274527,7.14,137.36,137.31,7.14]
[1718878274749,7.14,137.36,137.3,6.3352]
[1718878274750,7.14,137.35,137.3,6.3352]
[1718878274934,7.14,137.35,137.3,13.4752]
[1718878275139,7.2806,137.36,137.31,7.14]
[1718878275140,14.4206,137.36,137.31,7.14]
[1718878275449,14.4206,137.36,137.3,13.4752]
[1718878275450,7.14,137.35,137.3,13.4752]
[1718878275842,14.4208,137.35,137.3,13.4752]
[1718878277549,14.4208,137.35,137.3,6.3352]
[1718878277738,7.14,137.35,137.3,13.4752]
[1718878278156,7.14,137.35,137.3,6.3352]
[1718878278467,7.14,137.34,137.3,6.3352]
[1718878278632,7.2807,137.35,137.3,6.3352]
[1718878278966,7.6203,137.36,137.3,6.3352]
[1718878279161,52.48,137.35,137.3,6.3352]
[1718878280369,59.7607,137.35,137.3,6.3352]
[1718878280967,52.48,137.35,137.3,13.4752]
[1718878281464,45.34,137.35,137.3,13.4752]
[1718878282066,52.6207,137.35,137.3,13.4752]
[1718878285371,7.282,137.33,137.29,16.1751]
[1718878285545,14.422,137.33,137.29,16.1751]
[1718878287358,7.2823,137.32,137.27,6.6285]
[1718878287538,45.34,137.35,137.25,15.7988]
[1718878287539,7.48,137.31,137.25,22.9388]
[1718878287736,7.31,137.31,137.25,22.9388]
[1718878287938,7.14,137.31,137.26,7.14]
[1718878288542,7.4519,137.33,137.27,7.14]
[1718878288736,52.31,137.32,137.27,7.14]
[1718878289363,59.5924,137.32,137.26,7.14]
[1718878290796,14.4228,137.31,137.25,15.7988]
[1718878290955,14.4228,137.31,137.26,7.14]
[1718878291855,7.2828,137.31,137.25,15.7988]
[1718878292073,14.4234,137.3,137.25,22.9388]
[1718878292566,7.14,137.3,137.25,22.9388]
[1718878293377,52.31,137.32,137.25,15.7988]
[1718878293560,52.31,137.32,137.27,7.14]
[1718878293940,59.5922,137.32,137.27,7.14]
[1718878294453,7.2827,137.31,137.27,7.14]
[1718878294654,14.4227,137.31,137.26,7.14]
[1718878294962,7.14,137.31,137.26,7.14]
[1718878295649,7.14,137.31,137.25,15.7988]
[1718878295946,7.14,137.31,137.26,7.14]
[1718878296142,23.3303,137.33,137.27,7.14]
[1718878296466,14.4222,137.32,137.27,7.14]
[1718878296644,7.14,137.32,137.27,7.14]
[1718878297039,14.4223,137.32,137.27,7.14]
[1718878297251,14.4223,137.32,137.25,15.7988]
[1718878297467,7.14,137.32,137.27,7.14]
[1718878298366,14.4222,137.32,137.27,7.14]
[1718878298665,7.2828,137.31,137.25,15.7988]
[1718878298870,14.4224,137.32,137.26,7.14]
[1718878299866,7.2827,137.31,137.25,15.7988]
[1718878300073,14.4224,137.32,137.26,7.14]
[1718878300257,14.4224,137.32,137.27,7.14]
[1718878301355,7.2839,137.29,137.24,6.6086]
[1718878301664,7.2839,137.29,137.24,7.14]
[1718878301665,7.14,137.29,137.24,7.14]
[1718878301872,14.4239,137.29,137.24,7.14]
[1718878302164,14.4239,137.29,137.21,15.9686]
[1718878302369,14.4239,137.29,137.24,7.14]
[1718878302753,7.14,137.29,137.24,7.14]
[1718878303252,14.4235,137.3,137.24,7.14]
[1718878303565,7.7929,137.31,137.25,7.14]
[1718878303771,0.51,137.31,137.26,7.14]
[1718878303950,7.48,137.31,137.26,7.14]
[1718878304748,0.34,137.31,137.26,7.14]
[1718878304944,45.34,137.31,137.26,7.14]
[1718878305576,52.48,137.31,137.26,7.14]
[1718878305794,59.7628,137.31,137.26,7.14]
[1718878306491,7.2833,137.3,137.26,7.14]
[1718878306665,52.48,137.31,137.26,7.14]
[1718878306863,59.7631,137.31,137.26,7.14]
[1718878307472,7.14,137.3,137.22,0.17]
[1718878307667,7.2839,137.29,137.25,7.14]
[1718878307869,14.4235,137.3,137.25,7.14]
[1718878308067,59.7628,137.31,137.25,7.14]
[1718878308652,7.2828,137.31,137.26,7.14]
[1718878308869,14.4228,137.31,137.26,7.14]
[1718878310352,52.2833,137.3,137.22,0.17]
[1718878310554,52.2833,137.3,137.25,7.14]
[1718878310777,59.4233,137.3,137.25,7.14]
[1718878311363,59.4233,137.3,137.24,7.14]
[1718878312374,59.4233,137.3,137.25,7.14]
[1718878312566,0.34,137.32,137.26,7.14]
[1718878312764,22.2141,137.33,137.26,7.14]
[1718878312960,23.0185,137.33,137.22,0.17]
[1718878313158,30.3003,137.33,137.27,7.14]
[1718878313558,23.0185,137.33,137.28,7.14]
[1718878314156,30.3003,137.33,137.28,7.14]
[1718878314365,30.3003,137.33,137.27,7.14]
[1718878315668,7.2823,137.32,137.27,7.14]
[1718878316377,30.3003,137.33,137.27,7.14]
[1718878316586,15.8785,137.33,137.27,7.14]
[1718878316876,23.0185,137.33,137.27,7.14]
[1718878317172,30.3005,137.33,137.27,7.14]
[1718878317679,7.2822,137.32,137.27,7.14]
[1718878318779,14.4222,137.32,137.27,7.14]
[1718878321179,16.3327,137.36,137.27,7.14]
[1718878321384,388.0,137.44,137.32,7.14]
[1718878321385,22.369,137.39,137.32,7.14]
[1718878321676,14.4191,137.38,137.33,7.14]
[1718878322064,22.369,137.39,137.33,7.14]
[1718878322267,16.3327,137.39,137.35,7.14]
[1718878322678,16.3327,137.39,137.36,7.14]
[1718878323063,16.3327,137.39,137.35,7.14]
[1718878323464,16.3327,137.39,137.31,15.868]
[1718878323465,23.4727,137.39,137.31,15.868]
[1718878323665,14.4195,137.38,137.33,7.14]
[1718878323859,7.14,137.38,137.33,7.14]
[1718878324263,30.7514,137.39,137.34,7.14]
[1718878324859,23.4727,137.39,137.34,7.14]
[1718878325278,30.7513,137.39,137.34,7.14]
[1718878325986,23.4727,137.39,137.34,7.14]
[1718878326667,16.3327,137.39,137.35,7.14]
[1718878327259,16.3327,137.39,137.34,7.14]
[1718878327673,23.4727,137.39,137.34,7.14]
[1718878327989,30.7514,137.39,137.34,7.14]
[1718878328380,30.7514,137.39,137.33,7.14]
[1718878329889,23.4727,137.39,137.33,7.14]
[1718878330276,16.3327,137.39,137.36,7.14]
[1718878330678,7.14,137.42,137.36,7.14]
[1718878330880,0.34,137.41,137.36,7.14]
[1718878331074,7.14,137.42,137.36,7.14]
[1718878331389,7.14,137.42,137.37,7.14]
[1718878331576,37.1996,137.43,137.31,15.868]
[1718878331882,14.417,137.42,137.36,7.14]
[1718878332266,7.14,137.42,137.36,7.14]
[1718878332588,7.14,137.42,137.37,7.14]
[1718878332889,14.4169,137.42,137.37,7.14]
[1718878333094,7.14,137.42,137.37,7.14]
[1718878334082,14.417,137.42,137.37,7.14]
[1718878334287,45.0,137.41,137.37,7.14]
[1718878334584,45.0,137.41,137.36,7.14]
[1718878335986,45.0,137.41,137.37,7.14]
[1718878336199,52.14,137.42,137.37,7.14]
[1718878337378,59.417,137.42,137.32,0.17]
[1718878337575,45.0,137.42,137.36,7.14]
[1718878337895,52.14,137.42,137.37,7.14]
[1718878338798,59.4171,137.42,137.33,0.17]
[1718878339096,59.4171,137.42,137.37,7.14]
[1718878339897,14.4175,137.41,137.33,0.17]
[1718878340104,14.4175,137.41,137.36,7.14]
[1718878340598,7.14,137.41,137.36,7.14]
[1718878342880,7.14,137.38,137.3,6.246]
[1718878343074,7.14,137.38,137.33,7.14]
[1718878343490,7.14,137.38,137.28,16.1692]
[1718878343681,14.4196,137.38,137.32,7.14]
[1718878343883,52.48,137.37,137.32,7.14]
[1718878344908,59.7596,137.37,137.32,7.14]
[1718878345111,59.7598,137.37,137.28,16.1692]
[1718878345774,59.7598,137.37,137.31,7.14]
[1718878345983,59.7598,137.37,137.32,7.14]
[1718878346381,14.4201,137.36,137.27,34.5826]
[1718878346587,14.4203,137.36,137.31,7.14]
[1718878346783,52.48,137.35,137.3,7.14]
[1718878348599,59.7609,137.35,137.27,13.1626]
[1718878348790,52.6209,137.35,137.27,34.5826]
[1718878349301,59.7609,137.35,137.3,7.14]
[1718878352396,7.2813,137.34,137.3,7.14]
[1718878352610,59.7608,137.35,137.3,7.14]
[1718878352897,7.2812,137.34,137.3,7.14]
[1718878353490,24.9763,137.38,137.3,7.14]
[1718878353690,7.14,137.36,137.3,7.14]
[1718878353895,52.2809,137.35,137.3,7.14]
[1718878354100,7.2812,137.34,137.3,7.14]
[1718878354481,59.4208,137.35,137.3,7.14]
[1718878354681,7.2812,137.34,137.3,7.14]
[1718878355095,7.2823,137.32,137.24,21.2465]
[1718878355294,7.2823,137.32,137.26,7.14]
[1718878355295,7.14,137.31,137.26,7.14]
[1718878360003,7.14,137.31,137.22,0.17]
[1718878360187,7.2833,137.3,137.25,7.14]
[1718878360509,14.4233,137.3,137.24,7.14]
[1718878361693,7.14,137.3,137.24,7.14]
[1718878362817,7.14,137.3,137.22,0.34]
[1718878363017,7.14,137.3,137.25,7.14]
[1718878364005,0.17,137.32,137.22,0.17]
[1718878364207,6.1356,137.33,137.28,7.14]
[1718878364513,6.1356,137.33,137.29,7.14]
[1718878366103,0.34,137.32,137.21,22.7386]
[1718878366405,7.14,137.3,137.25,7.14]
[1718878366910,7.2831,137.31,137.25,7.14]
[1718878367307,7.2833,137.3,137.25,7.14]
[1718878368104,7.2833,137.3,137.22,0.17]
[1718878368414,7.2829,137.31,137.25,7.14]
[1718878369103,45.0,137.3,137.25,7.14]
[1718878369305,52.2833,137.3,137.25,7.14]
[1718878369615,45.0,137.3,137.25,7.14]
[1718878372295,45.0,137.3,137.26,7.14]
[1718878374120,0.34,137.32,137.26,7.14]
[1718878374419,52.14,137.32,137.27,7.14]
[1718878374720,45.0,137.32,137.28,7.14]
[1718878375601,52.14,137.32,137.27,7.14]
[1718878376319,59.4223,137.32,137.27,7.14]
[1718878376918,52.2823,137.32,137.27,7.14]
[1718878378398,7.2823,137.32,137.27,7.14]
[1718878378600,16.3877,137.34,137.3,7.14]
[1718878380105,16.3877,137.34,137.28,0.17]
[1718878380313,16.3877,137.34,137.3,7.14]
[1718878380909,16.3877,137.34,137.28,0.17]
[1718878381218,45.0,137.33,137.3,7.14]
[1718878383232,45.0,137.33,137.31,7.14]
[1718878383418,12.26798949,137.37,137.32,7.14]
[1718878383419,15.1171,137.37,137.32,7.14]
[1718878383622,15.1171,137.37,137.34,7.14]
[1718878383806,22.397,137.37,137.3,0.17]
[1718878384008,7.2801,137.36,137.32,7.14]
[1718878384208,22.3969,137.37,137.32,7.14]
[1718878385112,45.0,137.36,137.33,7.14]
[1718878386927,253.4,137.39,137.35,7.14]
[1718878387108,21.7301,137.41,137.36,7.14]
[1718878387308,28.8701,137.41,137.36,7.14]
[1718878387720,36.1479,137.41,137.36,7.14]
[1718878388227,52.278,137.4,137.34,0.17]
[1718878388421,52.278,137.4,137.36,7.14]
[1718878388807,7.2786,137.39,137.32,0.34]
[1718878389004,45.0,137.38,137.32,0.17]
[1718878389208,45.0,137.38,137.34,7.14]
[1718878389614,45.0,137.39,137.34,7.14]
[1718878389806,45.0,137.39,137.35,7.14]
[1718878390007,45.0,137.4,137.35,7.14]
[1718878390421,45.0,137.4,137.36,7.14]
[1718878393711,6.3458,137.26,137.15,7.298]
[1718878393914,6.3458,137.26,137.13,28.56]
[1718878393915,13.6317,137.26,137.13,28.56]
[1718878394113,13.6317,137.26,137.12,15.9842]
[1718878394114,52.626,137.25,137.12,15.9842]
[1718878394335,7.14,137.23,137.17,7.14]
[1718878394534,45.0,137.22,137.17,7.14]